[Event "Titled Tuesday Blitz January 10 Early 2023"]
[White "Osinovsky, Stepan"]
[Black "Winkels, Marcel"]
[WhiteFideId "4157354"]
[BlackFideId "1003887"]
[WhiteElo "2241"]
[BlackElo "1960"]
[Result "1-0"]
[Round "02"]
[TimeControl "180+2"]
[Date "2023.01.10"]
[WhiteClock "0:00:14"]
[BlackClock "0:00:31"]

1. Nf3 {[%clk 0:02:23]}  Nf6 {[%clk 0:02:58]} 2. g3 {[%clk 0:02:24]}  d5 {[%clk 0:02:57]} 3. Bg2 {[%clk 0:02:25]}  g6 {[%clk 0:02:56]} 4. O-O {[%clk 0:02:26]}  Bg7 {[%clk 0:02:56]} 5. d3 {[%clk 0:02:27]}  O-O {[%clk 0:02:55]} 6. Nbd2 {[%clk 0:02:28]}  c5 {[%clk 0:02:52]} 7. e4 {[%clk 0:02:28]}  dxe4 {[%clk 0:02:52]} 8. dxe4 {[%clk 0:02:29]}  Nc6 {[%clk 0:02:51]} 9. Qe2 {[%clk 0:02:27]}  Bg4 {[%clk 0:02:49]} 10. h3 {[%clk 0:02:17]}  Nd4 {[%clk 0:02:47]} 11. Qd1 {[%clk 0:02:17]}  Nxf3+ {[%clk 0:02:42]} 12. Nxf3 {[%clk 0:02:17]}  Qxd1 {[%clk 0:02:27]} 13. Rxd1 {[%clk 0:02:18]}  Bxf3 {[%clk 0:02:23]} 14. Bxf3 {[%clk 0:02:19]}  Rfd8 {[%clk 0:02:19]} 15. Be3 {[%clk 0:02:19]}  Rac8 {[%clk 0:02:13]} 16. Rxd8+ {[%clk 0:01:27]}  Rxd8 {[%clk 0:02:10]} 17. Bxc5 {[%clk 0:01:28]}  Rd2 {[%clk 0:01:49]} 18. Rc1 {[%clk 0:01:13]}  Nd7 {[%clk 0:01:34]} 19. Be3 {[%clk 0:01:08]}  Rd6 {[%clk 0:01:30]} 20. Rd1 {[%clk 0:00:40]}  Rxd1+ {[%clk 0:01:23]} 21. Bxd1 {[%clk 0:00:41]}  Bxb2 {[%clk 0:01:23]} 22. Bxa7 {[%clk 0:00:41]}  b6 {[%clk 0:01:21]} 23. Be2 {[%clk 0:00:37]}  Bd4 {[%clk 0:01:17]} 24. Kf1 {[%clk 0:00:32]}  Nf6 {[%clk 0:01:02]} 25. Bd3 {[%clk 0:00:24]}  Ne8 {[%clk 0:00:56]} 26. Bb8 {[%clk 0:00:17]}  e5 {[%clk 0:00:55]} 27. Ke2 {[%clk 0:00:15]}  Kf8 {[%clk 0:00:54]} 28. f4 {[%clk 0:00:16]}  f6 {[%clk 0:00:52]} 29. Kd2 {[%clk 0:00:14]}  Ke7 {[%clk 0:00:51]} 30. fxe5 {[%clk 0:00:13]}  fxe5 {[%clk 0:00:51]} 31. c3 {[%clk 0:00:12]}  Bc5 {[%clk 0:00:39]} 32. Bxe5 {[%clk 0:00:12]}  Nd6 {[%clk 0:00:38]} 33. Bd4 {[%clk 0:00:12]}  Nf7 {[%clk 0:00:35]} 34. e5 {[%clk 0:00:11]}  Ke6 {[%clk 0:00:32]} 35. Bc4+ {[%clk 0:00:11]}  Ke7 {[%clk 0:00:32]} 36. Bxf7 {[%clk 0:00:11]}  Kxf7 {[%clk 0:00:32]} 37. Bxc5 {[%clk 0:00:12]}  bxc5 {[%clk 0:00:31]} 38. Kd3 {[%clk 0:00:13]}  Ke6 {[%clk 0:00:31]} 39. Ke4 {[%clk 0:00:14]} 1-0


[Site "https://www.chess.com"]

[Event "Titled Tuesday Blitz January 10 Early 2023"]
[White "Sihite, Chelsie Monica Ignesias"]
[Black "Rosh Jain"]
[WhiteFideId "7101198"]
[BlackFideId "25789465"]
[WhiteElo "2266"]
[BlackElo "2248"]
[Result "1-0"]
[Round "02"]
[TimeControl "180+2"]
[Date "2023.01.10"]
[WhiteClock "0:00:40"]
[BlackClock "0:00:02"]

1. e4 {[%clk 0:03:00]}  c5 {[%clk 0:02:51]} 2. Nf3 {[%clk 0:03:00]}  d6 {[%clk 0:02:48]} 3. d4 {[%clk 0:02:59]}  cxd4 {[%clk 0:02:49]} 4. Nxd4 {[%clk 0:02:58]}  Nf6 {[%clk 0:02:49]} 5. Nc3 {[%clk 0:02:59]}  a6 {[%clk 0:02:49]} 6. Be2 {[%clk 0:02:57]}  e5 {[%clk 0:02:48]} 7. Nf3 {[%clk 0:02:57]}  Be7 {[%clk 0:02:48]} 8. Be3 {[%clk 0:02:57]}  Be6 {[%clk 0:02:31]} 9. O-O {[%clk 0:02:56]}  O-O {[%clk 0:02:29]} 10. Ng5 {[%clk 0:02:53]}  Bd7 {[%clk 0:02:29]} 11. f4 {[%clk 0:02:53]}  Bc6 {[%clk 0:02:24]} 12. Bf3 {[%clk 0:02:48]}  Nbd7 {[%clk 0:02:20]} 13. Qe1 {[%clk 0:02:33]}  exf4 {[%clk 0:02:18]} 14. Bxf4 {[%clk 0:02:34]}  Ne5 {[%clk 0:02:11]} 15. Kh1 {[%clk 0:02:29]}  h6 {[%clk 0:02:08]} 16. Nh3 {[%clk 0:02:29]}  Qb6 {[%clk 0:02:04]} 17. Rb1 {[%clk 0:01:37]}  Rfe8 {[%clk 0:01:59]} 18. Qg3 {[%clk 0:01:34]}  Kh8 {[%clk 0:01:47]} 19. Be2 {[%clk 0:01:28]}  Bf8 {[%clk 0:01:44]} 20. Bd3 {[%clk 0:01:27]}  Ng6 {[%clk 0:01:43]} 21. Bxh6 {[%clk 0:01:27]}  Qc7 {[%clk 0:01:08]} 22. Nf4 {[%clk 0:01:05]}  Nxf4 {[%clk 0:00:55]} 23. Bxf4 {[%clk 0:01:04]}  Kg8 {[%clk 0:00:54]} 24. Bg5 {[%clk 0:01:04]}  Nxe4 {[%clk 0:00:52]} 25. Qh4 {[%clk 0:00:55]}  Nxg5 {[%clk 0:00:50]} 26. Qxg5 {[%clk 0:00:56]}  Qe7 {[%clk 0:00:40]} 27. Qh5 {[%clk 0:00:56]}  g6 {[%clk 0:00:39]} 28. Qg4 {[%clk 0:00:55]}  Bg7 {[%clk 0:00:36]} 29. Ne2 {[%clk 0:00:48]}  Qe5 {[%clk 0:00:29]} 30. Nf4 {[%clk 0:00:47]}  d5 {[%clk 0:00:06]} 31. Nxg6 {[%clk 0:00:47]}  fxg6 {[%clk 0:00:05]} 32. Qxg6 {[%clk 0:00:47]}  Qe4 {[%clk 0:00:04]} 33. Qf7+ {[%clk 0:00:45]}  Kh8 {[%clk 0:00:02]} 34. Bxe4 {[%clk 0:00:45]}  Rxe4 {[%clk 0:00:02]} 35. Rf5 {[%clk 0:00:42]}  Rh4 {[%clk 0:00:02]} 36. Rbf1 {[%clk 0:00:40]} 1-0


[Site "https://www.chess.com"]

[Event "Titled Tuesday Blitz January 10 Early 2023"]
[White "Johnson, Ben"]
[Black "Legenia, Artem"]
[WhiteFideId "2010917"]
[BlackFideId "14136945"]
[WhiteElo "1961"]
[BlackElo "2092"]
[Result "0-1"]
[Round "02"]
[TimeControl "180+2"]
[Date "2023.01.10"]
[WhiteClock "0:00:02"]
[BlackClock "0:00:37"]

1. Nf3 {[%clk 0:03:00]}  d5 {[%clk 0:02:58]} 2. e3 {[%clk 0:03:00]}  Bg4 {[%clk 0:02:58]} 3. c4 {[%clk 0:03:00]}  e6 {[%clk 0:02:57]} 4. cxd5 {[%clk 0:02:55]}  exd5 {[%clk 0:02:57]} 5. Qb3 {[%clk 0:02:55]}  Bc8 {[%clk 0:02:51]} 6. Nc3 {[%clk 0:02:43]}  Nf6 {[%clk 0:02:50]} 7. d4 {[%clk 0:02:39]}  c6 {[%clk 0:02:49]} 8. Bd3 {[%clk 0:02:35]}  Bd6 {[%clk 0:02:49]} 9. O-O {[%clk 0:02:32]}  O-O {[%clk 0:02:49]} 10. e4 {[%clk 0:02:17]}  dxe4 {[%clk 0:02:48]} 11. Nxe4 {[%clk 0:02:17]}  Nxe4 {[%clk 0:02:49]} 12. Bxe4 {[%clk 0:02:18]}  Nd7 {[%clk 0:02:49]} 13. Bg5 {[%clk 0:02:11]}  Qb6 {[%clk 0:02:47]} 14. Qc2 {[%clk 0:01:50]}  h6 {[%clk 0:02:46]} 15. Bh4 {[%clk 0:01:46]}  Qa5 {[%clk 0:02:35]} 16. Rfe1 {[%clk 0:01:22]}  Qh5 {[%clk 0:02:34]} 17. Bg3 {[%clk 0:01:18]}  Bxg3 {[%clk 0:02:34]} 18. hxg3 {[%clk 0:01:19]}  Nf6 {[%clk 0:02:33]} 19. Qc5 {[%clk 0:01:05]}  Bg4 {[%clk 0:02:14]} 20. Qxh5 {[%clk 0:01:01]}  Bxh5 {[%clk 0:02:13]} 21. Bf5 {[%clk 0:00:51]}  Bxf3 {[%clk 0:02:03]} 22. gxf3 {[%clk 0:00:50]}  Rfe8 {[%clk 0:02:02]} 23. Kf1 {[%clk 0:00:46]}  Rad8 {[%clk 0:02:01]} 24. Rad1 {[%clk 0:00:35]}  Rxe1+ {[%clk 0:01:57]} 25. Kxe1 {[%clk 0:00:35]}  g6 {[%clk 0:01:50]} 26. Bc2 {[%clk 0:00:35]}  Kf8 {[%clk 0:01:48]} 27. Ke2 {[%clk 0:00:34]}  h5 {[%clk 0:01:44]} 28. Bb3 {[%clk 0:00:34]}  Nd5 {[%clk 0:01:36]} 29. a3 {[%clk 0:00:27]}  Ke7 {[%clk 0:01:33]} 30. Rg1 {[%clk 0:00:23]}  Nf6 {[%clk 0:01:30]} 31. Ke3 {[%clk 0:00:20]}  Kd6 {[%clk 0:01:24]} 32. g4 {[%clk 0:00:19]}  Ke7 {[%clk 0:01:18]} 33. gxh5 {[%clk 0:00:11]}  Nxh5 {[%clk 0:01:18]} 34. Rg5 {[%clk 0:00:11]}  Nf6 {[%clk 0:01:17]} 35. Ra5 {[%clk 0:00:10]}  a6 {[%clk 0:01:16]} 36. Re5+ {[%clk 0:00:09]}  Kf8 {[%clk 0:01:14]} 37. Bc4 {[%clk 0:00:08]}  Re8 {[%clk 0:01:14]} 38. b4 {[%clk 0:00:06]}  Nd7 {[%clk 0:00:56]} 39. Re4 {[%clk 0:00:04]}  Rd8 {[%clk 0:00:44]} 40. Bb3 {[%clk 0:00:03]}  Ra8 {[%clk 0:00:41]} 41. a4 {[%clk 0:00:03]}  a5 {[%clk 0:00:40]} 42. d5 {[%clk 0:00:02]}  cxd5 {[%clk 0:00:36]} 43. Bxd5 {[%clk 0:00:02]}  Nf6 {[%clk 0:00:37]} 0-1


[Site "https://www.chess.com"]

[Event "Titled Tuesday Blitz January 10 Early 2023"]
[White "Kho, Darrell"]
[Black "Devaev, Alexander"]
[WhiteFideId "1019317"]
[BlackFideId "4169395"]
[WhiteElo "2075"]
[BlackElo "2325"]
[Result "1-0"]
[Round "02"]
[TimeControl "180+2"]
[Date "2023.01.10"]
[WhiteClock "0:00:05"]
[BlackClock "0:00:02"]

1. e4 {[%clk 0:03:00]}  c6 {[%clk 0:02:59]} 2. Nc3 {[%clk 0:02:55]}  d5 {[%clk 0:02:59]} 3. Nf3 {[%clk 0:02:55]}  dxe4 {[%clk 0:02:49]} 4. Nxe4 {[%clk 0:02:55]}  Nf6 {[%clk 0:02:49]} 5. Qe2 {[%clk 0:02:55]}  Nxe4 {[%clk 0:02:49]} 6. Qxe4 {[%clk 0:02:55]}  Qd5 {[%clk 0:02:50]} 7. Qf4 {[%clk 0:02:50]}  Qe6+ {[%clk 0:02:48]} 8. Qe3 {[%clk 0:02:48]}  g6 {[%clk 0:02:48]} 9. d4 {[%clk 0:02:35]}  Bg7 {[%clk 0:02:48]} 10. c3 {[%clk 0:02:23]}  O-O {[%clk 0:02:47]} 11. Bd3 {[%clk 0:02:19]}  Qxe3+ {[%clk 0:02:43]} 12. Bxe3 {[%clk 0:02:19]}  Nd7 {[%clk 0:02:43]} 13. O-O-O {[%clk 0:02:18]}  a5 {[%clk 0:02:40]} 14. a4 {[%clk 0:02:09]}  Nb6 {[%clk 0:02:39]} 15. b3 {[%clk 0:02:06]}  Be6 {[%clk 0:02:38]} 16. Kc2 {[%clk 0:01:56]}  Bg4 {[%clk 0:02:33]} 17. Be4 {[%clk 0:01:41]}  Rfd8 {[%clk 0:02:23]} 18. h3 {[%clk 0:01:40]}  Be6 {[%clk 0:02:09]} 19. c4 {[%clk 0:01:30]}  Nd7 {[%clk 0:01:33]} 20. Ng5 {[%clk 0:01:18]}  Bf5 {[%clk 0:01:30]} 21. Bxf5 {[%clk 0:01:16]}  gxf5 {[%clk 0:01:29]} 22. d5 {[%clk 0:01:08]}  cxd5 {[%clk 0:01:14]} 23. Rxd5 {[%clk 0:01:07]}  e6 {[%clk 0:01:15]} 24. Rb5 {[%clk 0:00:59]}  Ne5 {[%clk 0:00:55]} 25. Rxb7 {[%clk 0:00:50]}  h6 {[%clk 0:00:56]} 26. Nf3 {[%clk 0:00:43]}  Nc6 {[%clk 0:00:56]} 27. Kc1 {[%clk 0:00:25]}  Nb4 {[%clk 0:00:54]} 28. Ne1 {[%clk 0:00:12]}  Rac8 {[%clk 0:00:47]} 29. Nc2 {[%clk 0:00:12]}  Nd3+ {[%clk 0:00:45]} 30. Kb1 {[%clk 0:00:11]}  Bc3 {[%clk 0:00:24]} 31. Rd1 {[%clk 0:00:09]}  Ne5 {[%clk 0:00:11]} 32. Rxd8+ {[%clk 0:00:08]}  Rxd8 {[%clk 0:00:11]} 33. Bc1 {[%clk 0:00:06]}  Rd1 {[%clk 0:00:10]} 34. Ne3 {[%clk 0:00:06]}  Rg1 {[%clk 0:00:09]} 35. Kc2 {[%clk 0:00:06]}  Bb4 {[%clk 0:00:09]} 36. Rb8+ {[%clk 0:00:06]}  Kg7 {[%clk 0:00:09]} 37. Bd2 {[%clk 0:00:06]}  Nc6 {[%clk 0:00:05]} 38. Rb6 {[%clk 0:00:05]}  Nd4+ {[%clk 0:00:05]} 39. Kd3 {[%clk 0:00:05]}  Bxd2 {[%clk 0:00:04]} 40. Kxd2 {[%clk 0:00:05]}  Rb1 {[%clk 0:00:05]} 41. Kc3 {[%clk 0:00:05]}  Ne2+ {[%clk 0:00:05]} 42. Kc2 {[%clk 0:00:05]}  Ra1 {[%clk 0:00:02]} 43. Kb2 {[%clk 0:00:05]}  Re1 {[%clk 0:00:02]} 44. c5 {[%clk 0:00:05]} 1-0


[Site "https://www.chess.com"]

[Event "Titled Tuesday Blitz January 10 Early 2023"]
[White "Jaskolka, Tomasz"]
[Black "Tuleyeva-Aketayeva, Dana"]
[WhiteFideId "1170791"]
[BlackFideId "13701932"]
[WhiteElo "2238"]
[BlackElo "2130"]
[Result "1-0"]
[Round "02"]
[TimeControl "180+2"]
[Date "2023.01.10"]
[WhiteClock "0:01:09"]
[BlackClock "0:00:28"]

1. d4 {[%clk 0:03:00]}  Nf6 {[%clk 0:02:59]} 2. c4 {[%clk 0:03:00]}  e6 {[%clk 0:02:59]} 3. g3 {[%clk 0:03:00]}  c5 {[%clk 0:02:59]} 4. d5 {[%clk 0:02:59]}  exd5 {[%clk 0:02:59]} 5. cxd5 {[%clk 0:03:00]}  d6 {[%clk 0:03:00]} 6. Nc3 {[%clk 0:03:01]}  g6 {[%clk 0:03:00]} 7. Bg2 {[%clk 0:03:01]}  Bg7 {[%clk 0:03:00]} 8. Nf3 {[%clk 0:03:02]}  O-O {[%clk 0:03:01]} 9. O-O {[%clk 0:03:02]}  Re8 {[%clk 0:02:56]} 10. Bf4 {[%clk 0:02:49]}  a6 {[%clk 0:02:49]} 11. a4 {[%clk 0:02:49]}  Nh5 {[%clk 0:02:46]} 12. Bg5 {[%clk 0:02:47]}  Bf6 {[%clk 0:02:44]} 13. Bxf6 {[%clk 0:02:46]}  Nxf6 {[%clk 0:02:39]} 14. Nd2 {[%clk 0:02:33]}  Nfd7 {[%clk 0:02:37]} 15. e4 {[%clk 0:02:27]}  Ne5 {[%clk 0:02:24]} 16. f4 {[%clk 0:02:20]}  Ng4 {[%clk 0:02:23]} 17. Nc4 {[%clk 0:02:19]}  f5 {[%clk 0:02:13]} 18. h3 {[%clk 0:02:09]}  Nh6 {[%clk 0:01:52]} 19. e5 {[%clk 0:02:08]}  dxe5 {[%clk 0:01:43]} 20. fxe5 {[%clk 0:02:08]}  Nf7 {[%clk 0:01:43]} 21. Re1 {[%clk 0:01:57]}  Qg5 {[%clk 0:01:43]} 22. Qf3 {[%clk 0:01:49]}  a5 {[%clk 0:01:23]} 23. Nb5 {[%clk 0:01:37]}  Na6 {[%clk 0:01:21]} 24. Rad1 {[%clk 0:01:20]}  Bd7 {[%clk 0:01:16]} 25. e6 {[%clk 0:01:18]}  Bxb5 {[%clk 0:01:01]} 26. exf7+ {[%clk 0:01:17]}  Kxf7 {[%clk 0:01:02]} 27. axb5 {[%clk 0:01:18]}  Rxe1+ {[%clk 0:00:54]} 28. Rxe1 {[%clk 0:01:18]}  Nb4 {[%clk 0:00:49]} 29. d6 {[%clk 0:01:14]}  Rb8 {[%clk 0:00:45]} 30. Re7+ {[%clk 0:01:10]}  Kf8 {[%clk 0:00:44]} 31. Qc3 {[%clk 0:01:09]}  Qxe7 {[%clk 0:00:27]} 32. dxe7+ {[%clk 0:01:08]}  Kxe7 {[%clk 0:00:28]} 33. Qe5+ {[%clk 0:01:09]} 1-0


[Site "https://www.chess.com"]

[Event "Titled Tuesday Blitz January 10 Early 2023"]
[White "Kiseleva, Arina"]
[Black "Zeman, Matyas"]
[WhiteFideId "4164989"]
[BlackFideId "364398"]
[WhiteElo "1962"]
[BlackElo "2296"]
[Result "0-1"]
[Round "02"]
[TimeControl "180+2"]
[Date "2023.01.10"]
[WhiteClock "0:00:14"]
[BlackClock "0:00:58"]

1. d4 {[%clk 0:03:00]}  e6 {[%clk 0:02:59]} 2. e3 {[%clk 0:02:55]}  f5 {[%clk 0:02:58]} 3. Bd3 {[%clk 0:02:53]}  Nf6 {[%clk 0:02:59]} 4. Ne2 {[%clk 0:02:51]}  b6 {[%clk 0:02:59]} 5. O-O {[%clk 0:02:50]}  Bb7 {[%clk 0:02:59]} 6. f3 {[%clk 0:02:51]}  Be7 {[%clk 0:02:53]} 7. c4 {[%clk 0:02:50]}  O-O {[%clk 0:02:52]} 8. Nbc3 {[%clk 0:02:50]}  d6 {[%clk 0:02:52]} 9. e4 {[%clk 0:02:45]}  fxe4 {[%clk 0:02:49]} 10. fxe4 {[%clk 0:02:39]}  Nc6 {[%clk 0:02:43]} 11. h3 {[%clk 0:02:31]}  e5 {[%clk 0:02:33]} 12. d5 {[%clk 0:02:22]}  Nb4 {[%clk 0:02:33]} 13. Bb1 {[%clk 0:02:15]}  Bc8 {[%clk 0:02:32]} 14. a3 {[%clk 0:02:13]}  Na6 {[%clk 0:02:33]} 15. b4 {[%clk 0:02:13]}  Qe8 {[%clk 0:02:31]} 16. Ng3 {[%clk 0:02:09]}  g6 {[%clk 0:02:16]} 17. Bd3 {[%clk 0:02:03]}  Bd7 {[%clk 0:02:06]} 18. Bh6 {[%clk 0:02:00]}  Rf7 {[%clk 0:02:05]} 19. Qd2 {[%clk 0:02:00]}  Rd8 {[%clk 0:01:59]} 20. c5 {[%clk 0:01:56]}  Nb8 {[%clk 0:01:59]} 21. c6 {[%clk 0:01:46]}  Bc8 {[%clk 0:01:59]} 22. Nb5 {[%clk 0:01:45]}  Bf8 {[%clk 0:01:55]} 23. Bxf8 {[%clk 0:01:43]}  Qxf8 {[%clk 0:01:56]} 24. Nxa7 {[%clk 0:01:41]}  Qg7 {[%clk 0:01:37]} 25. Nxc8 {[%clk 0:01:40]}  Rxc8 {[%clk 0:01:38]} 26. a4 {[%clk 0:01:39]}  h5 {[%clk 0:01:24]} 27. a5 {[%clk 0:01:28]}  h4 {[%clk 0:01:24]} 28. Ne2 {[%clk 0:01:27]}  bxa5 {[%clk 0:01:23]} 29. bxa5 {[%clk 0:01:26]}  g5 {[%clk 0:01:19]} 30. a6 {[%clk 0:01:16]}  Nxa6 {[%clk 0:01:18]} 31. Rxa6 {[%clk 0:01:04]}  g4 {[%clk 0:01:14]} 32. hxg4 {[%clk 0:00:52]}  Qxg4 {[%clk 0:01:15]} 33. Nc3 {[%clk 0:00:51]}  Rcf8 {[%clk 0:01:03]} 34. Qe2 {[%clk 0:00:47]}  Qg5 {[%clk 0:01:03]} 35. Ra2 {[%clk 0:00:28]}  Ng4 {[%clk 0:00:59]} 36. Rxf7 {[%clk 0:00:27]}  Rxf7 {[%clk 0:01:00]} 37. Qc2 {[%clk 0:00:19]}  Qe3+ {[%clk 0:00:59]} 38. Kh1 {[%clk 0:00:16]}  Qe1+ {[%clk 0:00:58]} 39. Bf1 {[%clk 0:00:14]}  Qxf1# {[%clk 0:00:58]} 0-1


[Site "https://www.chess.com"]

[Event "Titled Tuesday Blitz January 10 Early 2023"]
[White "Papayan, Oleg"]
[Black "Baruch, Liam"]
[WhiteFideId "4193911"]
[BlackFideId "14322064"]
[WhiteElo "2253"]
[BlackElo "1718"]
[Result "1-0"]
[Round "02"]
[TimeControl "180+2"]
[Date "2023.01.10"]
[WhiteClock "0:00:14"]
[BlackClock "0:01:23"]

1. e4 {[%clk 0:02:10]}  e5 {[%clk 0:02:58]} 2. Nf3 {[%clk 0:02:09]}  Nc6 {[%clk 0:02:58]} 3. Bb5 {[%clk 0:02:09]}  a6 {[%clk 0:02:58]} 4. Bxc6 {[%clk 0:02:10]}  dxc6 {[%clk 0:02:58]} 5. O-O {[%clk 0:02:11]}  f6 {[%clk 0:02:58]} 6. d4 {[%clk 0:02:10]}  exd4 {[%clk 0:02:56]} 7. Nxd4 {[%clk 0:02:11]}  Bd6 {[%clk 0:02:54]} 8. Be3 {[%clk 0:01:55]}  c5 {[%clk 0:02:46]} 9. Nb3 {[%clk 0:01:51]}  Qe7 {[%clk 0:02:43]} 10. Re1 {[%clk 0:01:43]}  Be6 {[%clk 0:02:43]} 11. Nc3 {[%clk 0:01:39]}  O-O-O {[%clk 0:02:41]} 12. Qe2 {[%clk 0:01:29]}  Be5 {[%clk 0:02:33]} 13. Rad1 {[%clk 0:01:17]}  c4 {[%clk 0:02:17]} 14. Nd4 {[%clk 0:01:12]}  Nh6 {[%clk 0:02:09]} 15. Bxh6 {[%clk 0:01:12]}  gxh6 {[%clk 0:02:08]} 16. Nxe6 {[%clk 0:01:03]}  Qxe6 {[%clk 0:02:09]} 17. Qf3 {[%clk 0:00:53]}  Rhg8 {[%clk 0:01:58]} 18. h3 {[%clk 0:00:50]}  Rd7 {[%clk 0:01:51]} 19. Rxd7 {[%clk 0:00:50]}  Qxd7 {[%clk 0:01:51]} 20. Rd1 {[%clk 0:00:48]}  Qg7 {[%clk 0:01:51]} 21. g4 {[%clk 0:00:37]}  h5 {[%clk 0:01:48]} 22. Qf5+ {[%clk 0:00:37]}  Kb8 {[%clk 0:01:46]} 23. Rd7 {[%clk 0:00:32]}  Qg6 {[%clk 0:01:41]} 24. Rxh7 {[%clk 0:00:18]}  Qxf5 {[%clk 0:01:38]} 25. exf5 {[%clk 0:00:19]}  hxg4 {[%clk 0:01:39]} 26. h4 {[%clk 0:00:19]}  g3 {[%clk 0:01:38]} 27. fxg3 {[%clk 0:00:12]}  Rxg3+ {[%clk 0:01:37]} 28. Kf2 {[%clk 0:00:12]}  Bxc3 {[%clk 0:01:38]} 29. bxc3 {[%clk 0:00:12]}  Rxc3 {[%clk 0:01:38]} 30. h5 {[%clk 0:00:10]}  Rxc2+ {[%clk 0:01:38]} 31. Kg3 {[%clk 0:00:11]}  Rxa2 {[%clk 0:01:36]} 32. h6 {[%clk 0:00:11]}  c3 {[%clk 0:01:37]} 33. Rh8+ {[%clk 0:00:10]}  Ka7 {[%clk 0:01:37]} 34. Rc8 {[%clk 0:00:09]}  c2 {[%clk 0:01:22]} 35. Rxc7 {[%clk 0:00:09]}  Ra1 {[%clk 0:01:23]} 36. Rxc2 {[%clk 0:00:09]}  Rh1 {[%clk 0:01:23]} 37. Rh2 {[%clk 0:00:09]}  Rg1+ {[%clk 0:01:22]} 38. Kf4 {[%clk 0:00:09]}  Rg8 {[%clk 0:01:22]} 39. h7 {[%clk 0:00:10]}  Rh8 {[%clk 0:01:22]} 40. Ke4 {[%clk 0:00:11]}  b5 {[%clk 0:01:23]} 41. Kd5 {[%clk 0:00:09]}  b4 {[%clk 0:01:23]} 42. Ke6 {[%clk 0:00:10]}  b3 {[%clk 0:01:22]} 43. Kxf6 {[%clk 0:00:11]}  b2 {[%clk 0:01:21]} 44. Rxb2 {[%clk 0:00:11]}  Rxh7 {[%clk 0:01:21]} 45. Kg6 {[%clk 0:00:11]}  Rb7 {[%clk 0:01:20]} 46. Rxb7+ {[%clk 0:00:11]}  Kxb7 {[%clk 0:01:20]} 47. f6 {[%clk 0:00:12]}  a5 {[%clk 0:01:21]} 48. f7 {[%clk 0:00:12]}  a4 {[%clk 0:01:22]} 49. f8=Q {[%clk 0:00:13]}  a3 {[%clk 0:01:23]} 50. Qxa3 {[%clk 0:00:14]} 1-0


[Site "https://www.chess.com"]

[Event "Titled Tuesday Blitz January 10 Early 2023"]
[White "Salman, Pavel"]
[Black "Flis, Pawel"]
[WhiteFideId "24153753"]
[BlackFideId "1112864"]
[WhiteElo "2287"]
[BlackElo "1879"]
[Result "1-0"]
[Round "02"]
[TimeControl "180+2"]
[Date "2023.01.10"]
[WhiteClock "0:01:43"]
[BlackClock "0:00:07"]

1. d4 {[%clk 0:02:59]}  c5 {[%clk 0:02:56]} 2. Nc3 {[%clk 0:03:00]}  cxd4 {[%clk 0:02:55]} 3. Qxd4 {[%clk 0:02:57]}  Nc6 {[%clk 0:02:55]} 4. Qa4 {[%clk 0:02:57]}  Nf6 {[%clk 0:02:55]} 5. e4 {[%clk 0:02:57]}  d6 {[%clk 0:02:55]} 6. Bb5 {[%clk 0:02:56]}  Bd7 {[%clk 0:02:56]} 7. Nf3 {[%clk 0:02:56]}  g6 {[%clk 0:02:56]} 8. O-O {[%clk 0:02:55]}  Bg7 {[%clk 0:02:57]} 9. Nd5 {[%clk 0:02:55]}  O-O {[%clk 0:02:53]} 10. Bg5 {[%clk 0:02:54]}  a6 {[%clk 0:01:47]} 11. Bxc6 {[%clk 0:02:53]}  Bxc6 {[%clk 0:01:47]} 12. Qb3 {[%clk 0:02:53]}  h6 {[%clk 0:01:35]} 13. Bxf6 {[%clk 0:02:52]}  exf6 {[%clk 0:01:36]} 14. Rad1 {[%clk 0:02:49]}  Re8 {[%clk 0:01:03]} 15. Rfe1 {[%clk 0:02:47]}  Qa5 {[%clk 0:00:56]} 16. h4 {[%clk 0:02:37]}  h5 {[%clk 0:00:52]} 17. a3 {[%clk 0:02:35]}  Kh7 {[%clk 0:00:52]} 18. c4 {[%clk 0:02:27]}  b5 {[%clk 0:00:51]} 19. Nb4 {[%clk 0:02:21]}  Bxe4 {[%clk 0:00:44]} 20. cxb5 {[%clk 0:02:21]}  Bxf3 {[%clk 0:00:39]} 21. Qxf3 {[%clk 0:02:17]}  Qxb5 {[%clk 0:00:31]} 22. Rxe8 {[%clk 0:02:10]}  Rxe8 {[%clk 0:00:29]} 23. Rd5 {[%clk 0:02:09]}  Qc4 {[%clk 0:00:25]} 24. g3 {[%clk 0:02:03]}  Qc1+ {[%clk 0:00:21]} 25. Kg2 {[%clk 0:02:02]}  Qxb2 {[%clk 0:00:22]} 26. Nxa6 {[%clk 0:01:57]}  Re1 {[%clk 0:00:17]} 27. Nb4 {[%clk 0:01:50]}  Qa1 {[%clk 0:00:14]} 28. Kh2 {[%clk 0:01:44]}  f5 {[%clk 0:00:14]} 29. Nc2 {[%clk 0:01:44]}  Qd1 {[%clk 0:00:07]} 30. Rxd1 {[%clk 0:01:43]} 1-0


[Site "https://www.chess.com"]